Cogmind - Beta 12 @@@ ROGUE MODE // 2023.03.11 @ 21:17:53 Player: TrialByFire Result: Destroyed self with Heavy Missile Launcher Performance ------------- Evolutions (4) 2000 Regions Visited (10) 2000 Robots Destroyed (96) 480 Value Destroyed (4619) 4619 Prototype IDs (12) 240 Alien Tech Used (0) 0 Bonus (1515) 1515 TOTAL SCORE: 10854 Bonus ------- High Alert Combat Kills 183 Follower Combat Kills 832 Met R17 at Cetus 500 Cogmind --------- Core Integrity 0/850 Matter 225/300 Energy 150/150 System Corruption 7% Temperature Cool (90) Movement Walking (330) Ox3 Location -6/Hub_04(d) Parts ------- > --- POWER (1) -------- Light Angular Momentum Engine > --- PROPULSION (4) --- Myomer Leg Armored Huge Wheel > --- UTILITY (6) ------ Large Storage Unit High-capacity Storage Unit Advanced Signal Interpreter Centrium Medium Armor Plating Hacking Suite > --- WEAPON (4) ------- Heavy Missile Launcher Phasing Sabre > --- INVENTORY (20) --- Fission Core Quantum Reactor Enhanced Flexi-carbon Leg Armored Huge Wheel Advanced Sensor Array Target Analyzer Advanced Variable Charge Gun KE Penetrator Rocket Array Katana Peak State ------------ > --- POWER ------------ Quantum Reactor > --- PROPULSION ------- Flexi-carbon Leg Myomer Leg Myomer Leg Myomer Leg > --- UTILITY ---------- Large Storage Unit High-capacity Storage Unit Advanced Signal Interpreter Centrium Medium Armor Plating Centrium Medium Armor Plating Hacking Suite > --- WEAPON ----------- Heavy Laser Gatling Laser Wave Gun Phasing Sabre > --- INVENTORY -------- Light Angular Momentum Engine Fission Core Quantum Reactor Enhanced Flexi-carbon Leg Myomer Leg Armored Huge Wheel Armored Huge Wheel Advanced Sensor Array Target Analyzer Advanced Variable Charge Gun KE Penetrator Heavy Missile Launcher Rocket Array Katana [Rating: 91] Favorites ----------- Power Light Nuclear Core Engine Improved Deuterium Engine Power Core Light Nuclear Core Reactor Quantum Reactor Propulsion Armored Huge Wheel Treads Light Treads Leg Aluminum Leg Wheel Armored Huge Wheel Utility High-capacity Storage Unit Device Improved Heat Sink Storage High-capacity Storage Unit Processor Improved Signal Interpreter Hackware Hacking Suite Protection Improved Medium Armor Plating Weapon Improved EM Pulse Cannon Energy Gun Particle Gun Energy Cannon Improved EM Pulse Cannon Ballistic Gun High-powered Shotgun Ballistic Cannon Magnetic Acceleration Cannon Launcher Mini Grenade Launcher Impact Weapon Power Maul Slashing Weapon Katana Piercing Weapon Spear Build | -11 -10 -9 -9 -8 -7 -6 -6 -6 -6 -6 ------- Run | Jun Mat Mat Min Mat Fac Fac Ext Cet Arc Hub Slots Evolved 8 | . . 2 . 2 2 2 . . . . Power . | . . . . . . . . . . . Propulsion 2 | . . 1 . 1 . . . . . . Utility 4 | . . 1 . 1 1 1 . . . . Weapon 2 | . . . . . 1 1 . . . . Parts Attached 133 | 6 9 7 10 13 31 13 29 7 . 8 Power 18 | 1 2 1 1 2 5 1 3 1 . 1 Engine 11 | 1 1 1 . 1 3 . 3 . . 1 Core 6 | . 1 . 1 1 2 1 . . . . Reactor 1 | . . . . . . . . 1 . . Propulsion 36 | 2 2 2 4 4 4 1 10 3 . 4 Treads 3 | . . . 3 . . . . . . . Leg 24 | 2 2 2 1 1 . . 10 3 . 3 Wheel 9 | . . . . 3 4 1 . . . 1 Hover . | . . . . . . . . . . . Flight . | . . . . . . . . . . . Utility 28 | 1 1 2 1 3 7 6 4 2 . 1 Device 12 | . . 1 . . 5 2 3 1 . . Storage 5 | 1 1 1 . 1 . 1 . . . . Processor 4 | . . . . 1 1 1 1 . . . Hackware 1 | . . . . . . 1 . . . . Protection 6 | . . . 1 1 1 1 . 1 . 1 Artifact . | . . . . . . . . . . . Weapon 51 | 2 4 2 4 4 15 5 12 1 . 2 Energy Gun 12 | 2 3 1 1 1 1 . 2 . . 1 Energy Cannon 15 | . . 1 . . 9 4 1 . . . Ballistic Gun 4 | . 1 . 1 1 . 1 . . . . Ballistic Cannon 7 | . . . . . . . 7 . . . Launcher 6 | . . . 1 1 2 . 1 . . 1 Special Weapon . | . . . . . . . . . . . Impact Weapon 1 | . . . . . 1 . . . . . Slashing Weapon 5 | . . . 1 1 1 . 1 1 . . Piercing Weapon 1 | . . . . . 1 . . . . . Special Melee Weapon . | . . . . . . . . . . . Unidentified Prototypes 5 | . . 2 . . 1 1 . 1 . . Parts Lost 48 | . 2 . 9 . 5 7 14 . . 11 Power 5 | . 1 . 1 . 1 . 2 . . . Propulsion 13 | . . . 4 . . 1 2 . . 6 Utility 12 | . . . 1 . 3 4 2 . . 2 Weapon 18 | . 1 . 3 . 1 2 8 . . 3 Highest Loss Streak 11 | . 2 . 8 . 2 4 3 . . 11 To Critical Strikes . | . . . . . . . . . . . Average Slot Usage (%) 92 | . 99 100 99 82 83 85 93 99 100 92 Engine 4 | . 8 9 6 3 4 4 2 5 . . Core 3 | . 5 1 4 5 2 1 3 . . . Treads 2 | . . . 15 3 . . . . . . Leg 15 | . 28 33 17 1 . . 21 26 26 22 Wheel 5 | . . . . 15 14 13 2 . . . Device 6 | . . 11 6 . 8 11 9 7 6 3 Storage 16 | . 27 22 22 18 15 13 13 13 13 13 Processor 5 | . . . . 8 10 6 6 6 6 6 Hackware 2 | . . . . . . 5 6 6 6 6 Protection 3 | . . . 4 9 2 . 2 4 6 7 Energy Gun 7 | . 23 22 12 . 1 . 2 13 13 13 Energy Cannon 5 | . . . . . 12 18 3 6 6 3 Ballistic Gun 1 | . 4 . . 5 . 1 . . . . Ballistic Cannon 2 | . . . . . . . 9 . . . Launcher 1 | . . . 4 2 . . . . . . Impact Weapon 1 | . . . . . 2 6 2 . . . Slashing Weapon 3 | . . . 3 9 4 . 3 6 6 6 Naked Turns . | . . . . . . . . . . . Heaviest Build 110 | 12 56 75 76 81 91 98 100 110 110 110 Greatest Support 85 | 20 20 30 60 60 56 56 85 85 85 85 Greatest Overweight (x) 2 | 1 2 2 2 1 1 2 1 1 1 1 Average Overweight (x) 1 | . 1 1 1 1 1 1 . 1 1 1 Largest Inventory Capacity 20 | 8 20 20 20 20 20 20 20 20 20 20 Average Capacity 19 | 7 19 20 20 20 20 20 20 20 20 20 Most Carried 20 | 8 19 20 20 20 20 20 20 20 20 20 Average Carried 18 | 4 13 19 18 19 19 18 18 19 19 17 Final Capacity 20 | 8 20 20 20 20 20 20 20 20 20 20 Final Carried 20 | 6 19 15 19 20 20 15 20 20 20 11 Class Distribution -------------------- 47% | Mutant 27% | Scavenger-Mutant 12% | Scavenger-Tank 7% | Scavenger-Skirmisher 4% | Skirmisher Dominant Class ---------------- Mutant | -10/Materials Scavenger-Mutant | -9/Materials Scavenger-Mutant | -9/Mines Mutant | -8/Materials Mutant | -7/Factory Mutant | -6/Factory Scavenger-Mutant | -6/Extension Scavenger-Tank | -6/Cetus Scavenger-Tank | -6/Archives Scavenger-Mutant | -6/Hub_04(d) Resources | -11 -10 -9 -9 -8 -7 -6 -6 -6 -6 -6 ----------- Run | Jun Mat Mat Min Mat Fac Fac Ext Cet Arc Hub Matter Collected 2253 | 208 186 124 158 162 407 96 680 167 63 2 Remotely . | . . . . . . . . . . . Salvage Created 4366 | . 332 307 114 318 1295 176 1169 189 310 156 Parts 181 | . 22 14 2 15 54 5 37 15 7 10 Haulers Intercepted 1 | . . 1 . . . . . . . . Recyclers Shooed 1 | . . . . . . . 1 . . . Parts Field Recycled . | . . . . . . . . . . . Retrieved Matter . | . . . . . . . . . . . Parts Self-Destructed . | . . . . . . . . . . . Prevented . | . . . . . . . . . . . Kills | -11 -10 -9 -9 -8 -7 -6 -6 -6 -6 -6 ------- Run | Jun Mat Mat Min Mat Fac Fac Ext Cet Arc Hub Combat Hostiles Destroyed 88 | . 6 4 10 7 26 2 21 5 4 3 Melee 30 | . . . 1 4 9 1 12 . 2 1 Guns 25 | . 6 2 7 3 3 . . 3 . 1 Cannons 9 | . . . . . 3 . 4 2 . . AOE 15 | . . . 2 . 11 . 1 . . 1 Classes Destroyed 17 | . 3 3 2 . 5 . 3 . . 1 Worker 1 | . . . . . 1 . . . . . Builder 1 | . . . . . . . 1 . . . Hauler 1 | . . 1 . . . . . . . . Recycler 1 | . . 1 . . . . . . . . Mechanic 1 | . . . . . 1 . . . . . Operator 4 | . 1 . . . 2 1 . . . . Watcher 8 | . 1 1 . . 3 2 1 . . . Swarmer 6 | . . . . . 4 . . 2 . . Grunt 41 | . 6 . . 6 14 2 11 . . 2 Brawler 1 | . . . . . . . 1 . . . Duelist 1 | . . . . . . . 1 . . . Sentry 20 | . . 4 . 1 4 . 7 . 4 . Demolisher 1 | . . . 1 . . . . . . . Specialist 1 | . . . . . . . . . . 1 Hunter 3 | . . . . . 2 . 1 . . . Programmer 3 | . . . . . 2 . . 1 . . Cetus Guard 2 | . . . . . . . . 2 . . Assembled 9 | . . . 9 . . . . . . . Best Kill Streak 9 | . 4 5 7 4 9 3 3 2 1 3 Combat Bots Only 8 | . 4 2 7 4 8 2 3 2 1 3 Max Kills in Single Turn 4 | . 1 1 2 1 4 1 1 1 1 1 Gunslinging 1 | . . . 1 . . . . . . . Exploded 4 | . . . 1 . 4 . 1 . . 1 Melee 1 | . . . 1 1 1 1 1 . 1 1 Uniques/NPCs Destroyed . | . . . . . . . . . . . Combat | -11 -10 -9 -9 -8 -7 -6 -6 -6 -6 -6 -------- Run | Jun Mat Mat Min Mat Fac Fac Ext Cet Arc Hub Damage Taken 10875 | . 334 228 1379 853 2016 991 2660 331 565 1518 Core 1551 | . 69 44 232 90 257 117 212 46 67 417 Absorbed by Shields 182 | . . . . . . . 85 97 . . Regen/Repaired (Parts) 619 | . 22 . . 72 525 . . . . . Core Remaining (%) 69 | 100 72 . 31 83 63 . . . . . Volleys Fired 170 | . 23 17 21 13 34 3 23 20 7 9 Largest 3 | . 2 2 2 1 2 3 3 3 3 3 Hottest 239 | . 105 130 130 25 138 207 202 239 239 239 Shots Fired 354 | . 43 34 41 13 63 8 64 47 20 21 Gun 201 | . 43 34 37 13 14 . 5 27 13 15 Cannon 140 | . . . . . 44 8 58 20 7 3 Launcher 13 | . . . 4 . 5 . 1 . . 3 Special . | . . . . . . . . . . . Kinetic 80 | . 3 . 8 13 . . 56 . . . Thermal 174 | . 11 34 25 . 14 . 5 47 20 18 Explosive 13 | . . . 4 . 5 . 1 . . 3 Electromagnetic 87 | . 29 . 4 . 44 8 2 . . . Robot Hit Streak 23 | . 4 23 4 5 13 2 6 16 11 13 Robot Miss Streak 5 | . 2 1 3 2 3 2 4 5 3 2 Penetration Max 1 | . . . . . . . 1 . . . Secondary Targets 5 | . 3 . 2 . . . . . . . Max Gunslinging Chain 1 | . 1 . 1 . . . . . . . Shots Hit Robots 386 | . 27 28 21 45 79 12 93 35 24 22 Core Hits 186 | . 19 10 17 17 56 2 37 12 9 7 Critical Kills 2 | . . . . . . . 2 . . . Critical Parts Destroyed 12 | . . . . . . 3 9 . . . Critical Strikes 31 | . 1 1 1 6 2 3 15 1 . 1 Burn 4 | . . 1 1 . 1 . . 1 . . Destroy 5 | . . . . . . . 5 . . . Blast 2 | . . . . . . . 2 . . . Corrupt 2 | . 1 . . . 1 . . . . . Smash 9 | . . . . . . 3 6 . . . Sever 9 | . . . . 6 . . 2 . . 1 Melee Attacks 244 | . . . 2 57 62 12 94 2 7 8 Impact 50 | . . . . . 7 12 31 . . . Slashing 191 | . . . 2 57 52 . 63 2 7 8 Piercing 3 | . . . . . 3 . . . . . Sneak Attacks 2 | . . . . 1 . . 1 . . . Combat Hostiles 1 | . . . . . . . 1 . . . Follow-up Attacks . | . . . . . . . . . . . Damage Inflicted 12914 | . 410 426 471 1155 3613 749 3458 1014 742 876 Guns 2727 | . 372 426 336 227 234 . 54 533 273 272 Cannons 2529 | . . . . . 755 204 830 481 194 65 Explosions 2165 | . 38 . 105 . 1427 139 135 . . 321 Melee 5474 | . . . 30 928 1197 387 2439 . 275 218 Ramming 19 | . . . . . . 19 . . . . Kinetic 1083 | . 14 . 60 227 . . 782 . . . Thermal 3274 | . 120 426 240 . 557 59 54 1014 467 337 Explosive 1745 | . . . 105 . 1104 80 135 . . 321 Electromagnetic 1319 | . 276 . 36 . 755 204 48 . . . Impact 1655 | . . . . . 159 387 1109 . . . Slashing 3819 | . . . 30 928 1038 . 1330 . 275 218 Piercing . | . . . . . . . . . . . Highest Corruption 7 | . . 4 4 . 4 7 7 7 7 7 Average Corruption 5 | . . 4 4 . 1 7 7 7 7 7 Corruption Purged 5 | . . . . . 5 . . . . . Corruption Blocked . | . . . . . . . . . . . Effects 145 | . . 13 22 . 9 7 51 25 15 3 Message Errors 29 | . . 1 7 . 1 2 11 6 1 . Matter Fused 39 | . . 5 3 . 3 2 11 8 6 1 Heat Flow Errors 12 | . . . 3 . 2 . 3 1 3 . Energy Discharges 15 | . . 4 . . . . 6 3 1 1 Parts Rejected 4 | . . . . . 1 . 3 . . . Parts Fused 2 | . . . . . . . . 2 . . Data Loss (minor) 22 | . . 2 4 . 2 2 7 3 2 . Data Loss (major) 4 | . . 1 . . . . 2 1 . . Misfires 11 | . . . 3 . . 1 6 . 1 . Alerts 5 | . . . 2 . . . 1 . 1 1 Weapon Failures 2 | . . . . . . . 1 1 . . Overload Shots . | . . . . . . . . . . . Overflow Damage 778 | . 2 . . 11 123 286 327 6 . 23 Projectiles 27 | . . . . . 4 17 . 6 . . Explosions 237 | . 2 . . . 81 131 . . . 23 Melee 514 | . . . . 11 38 138 327 . . . Knockbacks 15 | . . . . . . 6 9 . . . Impact 9 | . . . . . . 5 4 . . . Kinetic 4 | . . . . . . . 4 . . . Secondary 2 | . . . . . . 1 1 . . . Self-Inflicted Damage 790 | . 38 . 35 . 105 527 15 . . 70 Shots 14 | . 1 . 1 . 2 6 1 . . 3 Rammed 1 | . . . . . . 1 . . . . Targets Rammed 1 | . . . . . . 1 . . . . Kicked . | . . . . . . . . . . . Crushed . | . . . . . . . . . . . Highest Temperature 544 | . 536 234 390 . 279 123 268 355 289 544 Average Temperature 132 | . 194 75 176 . 88 43 80 125 110 262 Received Heat Transfer 3268 | . 168 72 480 369 558 198 1014 4 63 342 Effects 14 | . 7 . 1 . . . . 1 . 5 Shutdowns 3 | . 2 . . . . . . . . 1 Energy Bleed 2 | . . . 1 . . . . 1 . . Matter Decay 1 | . 1 . . . . . . . . . Short Circuit 3 | . 3 . . . . . . . . . Damage (minor) 2 | . 1 . . . . . . . . 1 Damage (major) 3 | . . . . . . . . . . 3 Siege Activations . | . . . . . . . . . . . Robots Corrupted 1 | . . . . . . 1 . . . . Combat Hostiles . | . . . . . . . . . . . Parts Fried 14 | . . . . . 10 1 3 . . . Impact Corruptions 14 | . . . . . 2 3 9 . . . Robots Melted 4 | . . 2 . . . . . . 2 . Combat Hostiles 4 | . . 2 . . . . . . 2 . Parts Melted 15 | . . 4 . . 4 . 1 . 5 1 Heat Transferred 6405 | . 322 1110 629 . 731 50 125 1894 885 659 Parts Sabotaged . | . . . . . . . . . . . Parts Stolen . | . . . . . . . . . . . Parts Stripped . | . . . . . . . . . . . Power Chain Reactions 4 | . 1 . . . 2 1 . . . . Missiles Intercepted . | . . . . . . . . . . . Alert | -11 -10 -9 -9 -8 -7 -6 -6 -6 -6 -6 ------- Run | Jun Mat Mat Min Mat Fac Fac Ext Cet Arc Hub Peak Influence 905 | . 153 189 73 190 905 594 325 707 388 87 Initial 443 | . . 3 73 . 40 443 250 160 282 65 Average 212 | . 50 53 35 77 320 476 226 449 331 63 Maximum Alert Level 3 | . . . . . 3 2 1 3 1 . Low Security (%) 53 | 100 100 100 100 100 21 . 36 6 10 100 Level 1 33 | . . . . . 59 4 63 41 89 . Level 2 10 | . . . . . 12 95 . 36 . . Level 3 2 | . . . . . 6 . . 15 . . Level 4 . | . . . . . . . . . . . Level 5 . | . . . . . . . . . . . High Security . | . . . . . . . . . . . Max Security . | . . . . . . . . . . . Squads Dispatched 13 | . . . 1 1 6 1 2 . . 2 Investigation 5 | . . . 1 . 3 1 . . . . Extermination 2 | . . . . . 2 . . . . . Reinforcement 6 | . . . . 1 1 . 2 . . 2 Assault . | . . . . . . . . . . . Garrison . | . . . . . . . . . . . Intercept . | . . . . . . . . . . . Searches Triggered . | . . . . . . . . . . . Construction Impeded 1 | . . . . . . . 1 . . . Haulers Reinforced . | . . . . . . . . . . . Active Scanning Responses . | . . . . . . . . . . . Cargo Convoy Interrupts . | . . . . . . . . . . . Stealth | -11 -10 -9 -9 -8 -7 -6 -6 -6 -6 -6 --------- Run | Jun Mat Mat Min Mat Fac Fac Ext Cet Arc Hub Distress Signals 6 | . . 1 . . 1 . 2 2 . . Communications Jammed . | . . . . . . . . . . . Distress Signals . | . . . . . . . . . . . Times Spotted 162 | . 8 5 18 19 35 7 32 26 6 6 Peak Tracking Total 10 | . 3 2 10 4 9 4 5 5 2 5 Tactical Retreats 15 | . . . 1 3 2 3 6 . . . Traps | -11 -10 -9 -9 -8 -7 -6 -6 -6 -6 -6 ------- Run | Jun Mat Mat Min Mat Fac Fac Ext Cet Arc Hub Traps Triggered 12 | . . . . . 2 1 9 . . . Indirectly . | . . . . . . . . . . . Trap Hack Attempts . | . . . . . . . . . . . Triggered . | . . . . . . . . . . . Disarmed 6 | . . . . . 6 . . . . . Reprogrammed 6 | . 6 . . . . . . . . . Reused . | . . . . . . . . . . . Traps Extracted . | . . . . . . . . . . . Installed . | . . . . . . . . . . . Triggered 1 | . . . . . 1 . . . . . Machines | -11 -10 -9 -9 -8 -7 -6 -6 -6 -6 -6 ---------- Run | Jun Mat Mat Min Mat Fac Fac Ext Cet Arc Hub Machines Disabled 35 | . . 1 . . 21 9 . 3 1 . Max in Single Turn 17 | . . 1 . . 17 6 . 1 1 . Machines Repaired . | . . . . . . . . . . . Machines Sabotaged . | . . . . . . . . . . . Overloaded Fab Kills . | . . . . . . . . . . . Hacking | -11 -10 -9 -9 -8 -7 -6 -6 -6 -6 -6 --------- Run | Jun Mat Mat Min Mat Fac Fac Ext Cet Arc Hub Machines Accessed 48 | . 4 5 1 7 13 4 10 3 1 . Terminals 37 | . 3 4 . 5 10 3 9 3 . . Fabricators 1 | . . . . . 1 . . . . . Repair Stations 4 | . 1 . . 1 2 . . . . . Recycling Units 1 | . . . . . . . 1 . . . Scanalyzers 2 | . . 1 . 1 . . . . . . Garrison Access 1 | . . . . . . 1 . . . . Total Hacks 136 | . 10 16 1 21 30 9 17 7 25 . Successful 91 | . 6 10 1 15 19 5 8 2 25 . Failed 45 | . 4 6 . 6 11 4 9 5 . . Catastrophic 8 | . . 2 . . 3 . 2 1 . . Database Lockouts . | . . . . . . . . . . . Manual 2 | . . . . . . . . 2 . . Terminals 82 | . 6 11 . 13 22 7 16 7 . . Fabricators 1 | . . . . . 1 . . . . . Repair Stations 15 | . 4 . . 4 7 . . . . . Recycling Units 1 | . . . . . . . 1 . . . Scanalyzers 9 | . . 5 . 4 . . . . . . Garrison Access 2 | . . . . . . 2 . . . . Terminal Hacks 70 | . 4 5 1 9 13 4 7 2 25 . Record 28 | . . . . . . . 1 2 25 . Part Schematic 3 | . . . . . 1 . 2 . . . Robot Analysis 2 | . . . . . 2 . . . . . Prototype ID Bank 3 | . . . . 1 2 . . . . . Open Door 4 | . . . 1 . . 1 2 . . . Open DSF 2 | . . . . . 2 . . . . . Emergency Access Points 2 | . . 1 . 1 . . . . . . Locate Traps 3 | . . . . . 2 1 . . . . Disarm Traps 1 | . . . . . 1 . . . . . Reprogram Traps 1 | . 1 . . . . . . . . . Maintenance Status 2 | . . . . 1 . . 1 . . . Investigation Status 1 | . . 1 . . . . . . . . Reinforcement Status 2 | . . . . 1 . 1 . . . . Recall Investigation 1 | . . . . . 1 . . . . . Hauler Manifests 4 | . 1 1 . 1 . 1 . . . . Registered Components 1 | . . . . 1 . . . . . . Zone Layout 10 | . 2 2 . 3 2 . 1 . . . Fabricator Hacks . | . . . . . . . . . . . Repair Station Hacks 10 | . 2 . . 2 6 . . . . . Scan Component 5 | . 1 . . 1 3 . . . . . Repair 5 | . 1 . . 1 3 . . . . . Recycling Unit Hacks 1 | . . . . . . . 1 . . . Report Inventory 1 | . . . . . . . 1 . . . Scanalyzer 9 | . . 5 . 4 . . . . . . Insert Component 5 | . . 3 . 2 . . . . . . Analyze 4 | . . 2 . 2 . . . . . . Garrison Access Hacks 1 | . . . . . . 1 . . . . Coupler Status 1 | . . . . . . 1 . . . . Unauthorized Hacks . | . . . . . . . . . . . Terminals . | . . . . . . . . . . . Fabricators . | . . . . . . . . . . . Repair Stations . | . . . . . . . . . . . Recycling Units . | . . . . . . . . . . . Scanalyzers . | . . . . . . . . . . . Garrison Access . | . . . . . . . . . . . Data Cores Recovered 4 | . 1 . . . 2 1 . . . . Used . | . . . . . . . . . . . Hacking Detections 38 | . 3 4 . 5 12 3 8 3 . . Full Trace Events 3 | . . . . 1 2 . . . . . Feedback Events . | . . . . . . . . . . . Feedback Blocked . | . . . . . . . . . . . Robot Schematics Acquired . | . . . . . . . . . . . Robots Built . | . . . . . . . . . . . Authchips . | . . . . . . . . . . . Time . | . . . . . . . . . . . Total Robot Build Rating . | . . . . . . . . . . . Part Schematics Acquired 6 | . . 2 . 1 1 . 2 . . . Parts Built . | . . . . . . . . . . . Authchips . | . . . . . . . . . . . Time . | . . . . . . . . . . . Total Part Build Rating . | . . . . . . . . . . . Parts Repaired 5 | . 1 . . 1 3 . . . . . Time 183 | . 44 . . 44 95 . . . . . Parts Recycled . | . . . . . . . . . . . Recycled Matter . | . . . . . . . . . . . Retrieved Matter . | . . . . . . . . . . . Retrieved Components . | . . . . . . . . . . . Parts Scanalyzed 4 | . . 2 . 2 . . . . . . Part Schematics Acquired 3 | . . 2 . 1 . . . . . . Parts Damaged . | . . . . . . . . . . . Bothacking | -11 -10 -9 -9 -8 -7 -6 -6 -6 -6 -6 ------------ Run | Jun Mat Mat Min Mat Fac Fac Ext Cet Arc Hub Used RIF Installer . | . . . . . . . . . . . Robots Hacked . | . . . . . . . . . . . Non-combat . | . . . . . . . . . . . Combat . | . . . . . . . . . . . Robot Hacks Applied . | . . . . . . . . . . . Relay Couplers Released . | . . . . . . . . . . . Fabnet Peak Effective % . | . . . . . . . . . . . Robots Rewired . | . . . . . . . . . . . Allies Hacked . | . . . . . . . . . . . Hacks Repelled . | . . . . . . . . . . . Allies | -11 -10 -9 -9 -8 -7 -6 -6 -6 -6 -6 -------- Run | Jun Mat Mat Min Mat Fac Fac Ext Cet Arc Hub Total Allies 5 | . . . . . . . 2 3 . . Largest Group 4 | . . . . . . . 1 4 2 . Highest-Rated Group 431 | . . . . . . . 159 431 239 . Highest-Rated Ally 159 | . . . . . . . 159 159 143 . Total Orders . | . . . . . . . . . . . Ally Attacks 85 | . . . . . . . 4 79 2 . Total Damage 3382 | . . . . . . . 63 3271 48 . Kills 19 | . . . . . . . . 19 . . Allies Corrupted . | . . . . . . . . . . . Allies Melted 1 | . . . . . . . 1 . . . Intel | -11 -10 -9 -9 -8 -7 -6 -6 -6 -6 -6 ------- Run | Jun Mat Mat Min Mat Fac Fac Ext Cet Arc Hub Robot Analysis Total 2 | . . . . . 2 . . . . . Derelict Logs Recovered 2 | . . . 2 . . . . . . . Drone Launches . | . . . . . . . . . . . Drone Recoveries . | . . . . . . . . . . . Exploration | -11 -10 -9 -9 -8 -7 -6 -6 -6 -6 -6 ------------- Run | Jun Mat Mat Min Mat Fac Fac Ext Cet Arc Hub Turns Passed 8394 | 75 594 688 1021 855 1505 528 1977 624 449 78 Spaces Moved 3832 | 52 186 301 371 449 824 382 812 267 175 13 Core 19 | 19 . . . . . . . . . . Treads 209 | . . . 175 34 . . . . . . Legs 1752 | 33 186 301 196 . . . 581 267 175 13 Wheels 1852 | . . . . 415 824 382 231 . . . Hover . | . . . . . . . . . . . Flight . | . . . . . . . . . . . Fastest Speed 50 | 50 120 190 240 115 115 115 115 192 192 190 Average Speed 163 | 110 239 200 250 124 115 115 171 192 192 191 Slowest Speed 260 | 120 260 260 260 240 115 130 197 195 192 192 Overloaded Moves . | . . . . . . . . . . . Propulsion Burnouts . | . . . . . . . . . . . Robots Hopped . | . . . . . . . . . . . Cave-ins Triggered 2 | . . . . . 1 1 . . . . Exploration Rate (%) 42 | 4 31 28 87 34 27 10 73 70 98 2 Regions Visited 10 Branch Regions 5 Pre-discovered Areas 1 | . . . 1 . . . . . . . Known Exits Taken 4 | . . . . . . 1 1 1 1 . Unknown Exits Taken 6 | 1 1 1 1 1 1 . . . . . Scrap Searched 3 | . . . 3 . . . . . . . Spaces Dug 46 | . . . . 16 11 3 15 . . 1 Terrain Destroyed 309 | . 6 . 19 16 118 62 51 2 . 35 Melee 46 | . . . . 16 11 3 15 . . 1 Projectile 26 | . . . . . 1 . 22 2 . 1 AOE 237 | . 6 . 19 . 106 59 14 . . 33 Terrain Rammed . | . . . . . . . . . . . Walls Destroyed . | . . . . . . . . . . . Machines Disabled . | . . . . . . . . . . . Actions | -11 -10 -9 -9 -8 -7 -6 -6 -6 -6 -6 --------- Run | Jun Mat Mat Min Mat Fac Fac Ext Cet Arc Hub Total 5274 | 69 289 353 421 649 1225 438 1192 337 263 38 Wait 636 | . 55 16 5 76 218 20 149 26 71 . Move 3822 | 51 185 300 370 448 823 381 811 266 174 13 Hop . | . . . . . . . . . . . Pick Up 142 | 12 17 5 13 20 34 6 26 7 2 . Fast Attach 11 | . . . . 2 1 1 7 . . . Attach 74 | 6 3 2 9 5 15 8 17 1 . 8 Detach 2 | . . . . . . . 2 . . . Swap 48 | . 6 5 1 6 15 4 5 6 . . Drop 78 | . . 8 . 22 23 2 12 9 2 . Fire 170 | . 23 17 21 13 34 3 23 20 7 9 Melee 244 | . . . 2 57 62 12 94 2 7 8 Ram 1 | . . . . . . 1 . . . . Kick . | . . . . . . . . . . . Crush . | . . . . . . . . . . . Escape Stasis 46 | . . . . . . . 46 . . . Rewire . | . . . . . . . . . . . Trap . | . . . . . . . . . . . Miscellaneous . | . . . . . . . . . . . Route ------- -11/Junkyard -10/Materials -9/Materials -9/Mines (discovered 2 exits: *Mat x2) -8/Materials -7/Factory -6/Factory -6/Extension (discovered 2 exits: *Fac / *Cet) -6/Cetus (discovered 2 exits: *Fac / *Arc) -6/Archives (discovered 3 exits: *Fac / *Hub x2) -6/Hub_04(d) History --------- Turn | Location | Event 10 | -11/Junkyard | Discovered new exit (range 15) 76 | -11/Junkyard | Entered Materials 301 | -10/Materials | Discovered new exit (range 15) 306 | -10/Materials | Build established: Mutant 640 | -10/Materials | Repaired Broken Particle Gun 670 | -10/Materials | Entered another Materials area 670 | -9/Materials | Evolved 2 slots: Propulsion x1, Utility x1 930 | -9/Materials | Build established: Scavenger-Mutant 1203 | -9/Materials | Discovered new exit (range 14) 1358 | -9/Materials | Entered Mines 1362 | -9/Mines | Met a Derelict shopkeep closing up shop 1384 | -9/Mines | Met a Derelict bent on vengeance 1501 | -9/Mines | Discovered new exit (range 6) 1564 | -9/Mines | Learned location of Storage (-9) 1861 | -9/Mines | Assembled infested the area 1916 | -9/Mines | Core integrity fell below 50% 1954 | -9/Mines | Destroyed 7 combat bots 1954 | -9/Mines | Lost 8 parts (1p4n1u2w) 2181 | -9/Mines | Build established: Mutant 2311 | -9/Mines | Learned location of 1 exit from Proximity Caves 2340 | -9/Mines | Discovered new exit (range 4) 2379 | -9/Mines | Entered Materials 2379 | -8/Materials | Evolved 2 slots: Propulsion x1, Utility x1 2629 | -8/Materials | Repaired Arm. Huge Wheel 3209 | -8/Materials | Discovered new exit (range 13) 3234 | -8/Materials | Entered Factory 3234 | -7/Factory | Evolved 2 slots: Utility x1, Weapon x1 3281 | -7/Factory | Identified exit to DSF 3419 | -7/Factory | Repaired Lrg. Storage Unit 3932 | -7/Factory | Repaired Arm. Huge Wheel 3971 | -7/Factory | Repaired EM Pulse Cannon 4160 | -7/Factory | Found Prototype Launcher 4161 | -7/Factory | Identified Rocket Array 4220 | -7/Factory | Crushed by falling debris 4510 | -7/Factory | Destroyed 8 combat bots 4729 | -7/Factory | Discovered new exit (range 8) 4739 | -7/Factory | Entered another Factory area 4739 | -6/Factory | Evolved 2 slots: Utility x1, Weapon x1 4933 | -6/Factory | Crushed by falling debris 5261 | -6/Factory | Lost 4 parts (1n1u2w) 5262 | -6/Factory | Discovered new exit (range 6) 5265 | -6/Factory | Identified exit to Extension 5267 | -6/Factory | Entered Extension 5424 | -6/Extension | Spotted B-75 Beast 5564 | -6/Extension | Build established: Skirmisher 5889 | -6/Extension | Rescued a captive Derelict 6432 | -6/Extension | Lost 3 parts (1p2w) 6776 | -6/Extension | Build established: Scavenger-Mutant 7090 | -6/Extension | Rescued A7 7177 | -6/Extension | Discovered new exit (range 10) 7179 | -6/Extension | Discovered new exit (range 6) 7202 | -6/Extension | Identified exit to Factory 7238 | -6/Extension | Identified exit to Cetus 7244 | -6/Extension | Entered Cetus 7244 | -6/Cetus | Accompanied by 1 ally (A7) 7249 | -6/Cetus | Acquired a Cetus Manufacturing Module code from A7 7270 | -6/Cetus | Spotted Cetus Guard 7270 | -6/Cetus | Spotted Cetus Guard 7276 | -6/Cetus | Spotted Cetus Guard 7279 | -6/Cetus | Spotted Cetus Guard 7281 | -6/Cetus | Allies destroyed Cetus Guard 7287 | -6/Cetus | Allies destroyed Cetus Guard 7289 | -6/Cetus | Allies destroyed Cetus Guard 7289 | -6/Cetus | Allies destroyed Cetus Guard 7476 | -6/Cetus | Started Cetus Manufacturing Module 7501 | -6/Cetus | Manufactured an Enhanced Grunt 7526 | -6/Cetus | Manufactured an Enhanced Grunt 7551 | -6/Cetus | Manufactured an Enhanced Grunt 7551 | -6/Cetus | Cetus Manufacturing Module disabled 7635 | -6/Cetus | Build established: Scavenger-Tank 7643 | -6/Cetus | Discovered new exit (range 15) 7670 | -6/Cetus | Identified exit to Archives 7712 | -6/Cetus | Spotted Cetus Guard 7712 | -6/Cetus | Spotted Cetus Guard 7719 | -6/Cetus | Spotted Cetus Guard 7722 | -6/Cetus | Spotted Cetus Guard 7735 | -6/Cetus | Allies destroyed Cetus Guard 7741 | -6/Cetus | Destroyed Cetus Guard 7742 | -6/Cetus | Allies destroyed Cetus Guard 7745 | -6/Cetus | Destroyed Cetus Guard 7751 | -6/Cetus | Discovered exit to Factory (range 16) 7773 | -6/Cetus | Met Revision 17 7868 | -6/Cetus | Entered Archives 7868 | -6/Archives | Accompanied by 2 allies (A7) 8048 | -6/Archives | Unable to access archive contents 8085 | -6/Archives | Core integrity fell below 50% 8106 | -6/Archives | Unable to access archive contents 8127 | -6/Archives | Unable to access archive contents 8136 | -6/Archives | Discovered new exit (range 14) 8159 | -6/Archives | Identified exit to Hub_04(d) 8225 | -6/Archives | Discovered exit to Factory (range 13) 8284 | -6/Archives | Discovered exit to Hub_04(d) (range 13) 8317 | -6/Archives | Entered Hub_04(d) 8389 | -6/Hub_04(d) | Core integrity fell below 20% 8395 | -6/Hub_04(d) | Destroyed self with Heavy Missile Launcher Last Messages --------------- 08378_ Knocked back. 08380_ G-50 Soldier Lgt. Angular Momentum Engine severed. 08380_ Penetrated by Slug. 08380_ Centrium Medium Armor Plating destroyed. 08380_ Quantum Reactor blasted off. 08380_ Knocked back. 08381_ Penetrated by Slug. 08381_ Myomer Leg destroyed. 08384_ Penetrated by Slug. 08384_ Myomer Leg destroyed. 08386_ Gatling Laser destroyed. 08387_ Myomer Leg destroyed. 08387_ Wave Gun destroyed. 08388_ Knocked back. 08390_ Penetrated by Slug. 08390_ Destroyed Hvy. Laser. 08390_ G-50 Soldier destroyed. 08393_ Slug penetrates Wall. 08394_ Critical hit (Burn: +37). [Achievement: 10k Club] Map ----- +----------------------------------------------------+ | | | | | | | | | | | | | | | | | | | | | | | | | | | | | | | | | | | ??????????????????????????#?############"##??????? | | ?????????????????????????? ## !!] #??????? | | ?????????????????????????# !] #??????? | | ????????????????????????? !!] #??????? | | ????????????????????????# = !%=[ #??????? | | ??????????????????????### #####+###???????? | | ??????????????????????# Hg%* x ????? | | ??????????????????????# ????? | | ??????????????????????# @ ????? | | ??????????????????????### ########## ?????? | | ????????????????????????# % #??????????????? | | ????????????????????????###########??????????????? | | ?????????????????????????????????????????????????? | | ?????????????????????????????????????????????????? | | ?????????????????????????????????????????????????? | | ?????????????????????????????????????????????????? | | ?????????????????????????????????????????????????? | | ?????????????????????????????????????????????????? | | ?????????????????????????????????????????????????? | | ?????????????????????????????????????????????????? | | ?????????????????????????????????????????????????? | | ?????????????????????????????????????????????????? | | ?????????????????????????????????????????????????? | | ?????????????????????????????????????????????????? | | ?????????????????????????????????????????????????? | | ?????????????????????????????????????????????????? | | ?????????????????????????????????????????????????? | | ?????????????????????????????????????????????????? | | ?????????????????????????????????????????????????? | | ?????????????????????????????????????????????????? | | ?????????????????????????????????????????????????? | | ?????????????????????????????????????????????????? | | ?????????????????????????????????????????????????? | +----------------------------------------------------+ Best States ------------- Heat Dissipation 75 Energy Generation 25 Energy Capacity 350 Matter Stores 300 Matter Capacity 300 Sight Range 16 Robot Scan Range 15 Terrain Scan Density 10 Base Temperature (-) 100 Armor Coverage 450 Evasion (%) 55 Targeting Accuracy 6 Core Analysis 6 Recoil Reduction 3 Particle Charging 15 Offensive Hacking 10 Item Schematics ----------------- Aluminum Leg | -9/Materials | Scanalyzed Mni. Grenade Launcher | -9/Materials | Scanalyzed Arm. Huge Wheel | -8/Materials | Scanalyzed Hvy. Rocket Launcher | -7/Factory | Hacked Adv. Thermal Shield | -6/Extension | Hacked Imp. Weapon Cycler | -6/Extension | Hacked Robot Schematics ------------------ None Fabricated ------------ Nothing Alien Tech Used ----------------- None Achievements -------------- 10k Club Maybe Next Time I'll Detach My Launcher Prison Break Project G-00 Remodeling Revising The Future Challenges ------------ None Game ------ Seed ImpactEnhancedJammer Manual? 0 Play Time 02:19:19 Cumulative 40.9 hours Start 2023.03.11 @ 13:17:07 End 2023.03.11 @ 21:17:53 Sessions 3 Manual Loads 0 Difficulty Rogue Special Mode None Game No. 29 Rogue 29 Adventurer 0 Explorer 0 Win Type - Total 0 Types 0/0/0/0/0/0/0/0/0 Lore% 26 Gallery% 29 Achievement% 24 Wizard Run 0 Options --------- ASCII 0 Keyboard 0 Movement Numpad Keybinds 0 Fullscreen 1 Font 24/Terminus Map View 76x50 Tactical HUD 1 Map Filters NONE Filters NONE Steam 1 RUN: 20dfd26f-61f2-43ce-b69a-b1796e409714